fUSD/lending_fUSD_20260401
["ID","MTS","AMOUNT","RATE_DAILY","PERIOD"]
[419219505,1775023848213,-519.172537,0.00021478,7]
[419219506,1775023848225,-363.091076,0.00021478,7]
[419219507,1775023848238,-401.447059,0.00021478,7]
[419219508,1775023848253,-570.309711,0.00021478,7]
[419219509,1775023848264,-789.204387,0.00021478,7]
[419219510,1775023848276,-500.0,0.00021514,2]
[419219511,1775023848287,-10272.10520533,0.00021514,2]
[419219512,1775023848301,-151.0,0.00021514,2]
[419219513,1775023848314,-304.02480851,0.00021514,2]
[419219514,1775023848326,-500.0,0.00021569,2]
[419219515,1775023848339,-10652.17309792,0.00021569,2]
[419219516,1775023848351,-151.0,0.00021569,2]
[419219517,1775023848364,-315.27372642,0.00021569,2]
[419219518,1775023848376,-151.0,0.00021569,2]
[419219519,1775023848388,-151.0,0.00021569,2]
[419219520,1775023848400,-151.0,0.00021569,2]
[419219521,1775023848414,-16705.52487968,0.00021579,2]
[419219522,1775023848428,-500.0,0.00021624,2]
[419219523,1775023848441,-11046.30350255,0.00021624,2]
[419219524,1775023848453,-151.0,0.00021624,2]
[419219525,1775023848466,-326.9388543,0.00021624,2]
[419219526,1775023848479,-500.0,0.00021679,2]
[419219527,1775023848491,-11455.01673214,0.00021679,2]
[419219528,1775023848503,-151.0,0.00021679,2]
[419219529,1775023848515,-339.03559191,0.00021679,2]
[419219530,1775023848527,-1409.5919,0.000217,47]
[419219531,1775023848539,-500.0,0.00021734,2]
[419219532,1775023848551,-11878.85235123,0.00021734,2]
[419219533,1775023848562,-151.0,0.00021734,2]
[419219534,1775023848572,-500.0,0.00021789,2]
[419219535,1775023848583,-12318.36988823,0.00021789,2]
[419219536,1775023848593,-151.0,0.00021789,2]
[419219537,1775023848606,-201.93286099,0.00021842,2]
[419219538,1775023848618,-200.0,0.00021842,2]
[419219539,1775023848629,-1377.42282659,0.00021842,2]
[419219540,1775023848641,-201.93286099,0.00021842,2]
[419219541,1775023848653,-200.0,0.00021842,2]
[419219542,1775023848665,-181.08010149,0.00021842,2]
[419219543,1775023848678,-668.65185757,0.00021842,2]
[419219544,1775023848690,-290.26104003,0.00021842,2]
[419219545,1775023848703,-771.01748645,0.00021842,2]
[419219546,1775023848717,-500.0,0.00021844,2]
[419219547,1775023848729,-12774.14957409,0.00021844,2]
[419219548,1775023848741,-151.0,0.00021844,2]
[419219549,1775023848755,-500.0,0.00021899,2]
[419219550,1775023848768,-13246.79310833,0.00021899,2]
[419219551,1775023848780,-151.0,0.00021899,2]
[419219552,1775023848793,-151.0,0.00021899,2]
[419219553,1775023848803,-151.0,0.00021899,2]
[419219554,1775023848815,-151.0,0.00021899,2]
[419219555,1775023848825,-151.0,0.00021899,2]
[419219556,1775023848835,-342.803973,0.00021899,2]
[419219557,1775023848849,-342.803973,0.00021899,2]
[419219558,1775023848865,-342.803973,0.00021899,2]
[419219559,1775023848877,-342.803973,0.00021899,2]
[419219560,1775023848889,-2000.0,0.000219,2]
[419219561,1775023848899,-1000.0,0.000219,2]
[419219562,1775023848911,-5000.0,0.00021918,2]
[419219563,1775023848923,-500.0,0.00021954,2]
[419219564,1775023848935,-13736.92445334,0.00021954,2]
[419219565,1775023848947,-151.0,0.00021954,2]
[419219566,1775023848960,-350.0,0.00021984,2]
[419219567,1775023848971,-350.0,0.00021984,2]
[419219568,1775023848982,-350.0,0.00021984,2]
[419219569,1775023848993,-350.0,0.00021984,2]
[419219570,1775023849009,-350.0,0.00021984,2]
[419219571,1775023849022,-350.0,0.00021984,2]
[419219572,1775023849032,-350.0,0.00021984,2]
[419219573,1775023849043,-350.0,0.00021984,2]
[419219574,1775023849053,-350.0,0.00021984,2]
[419219575,1775023849063,-234.0,0.00021984,2]
[419219576,1775023849074,-426.0,0.00022,2]
[419219577,1775023849085,-153.0,0.00022,2]
[419219578,1775023849096,-879.0,0.00022,2]
[419219579,1775023849107,-1338.0,0.00022,2]
[419219580,1775023849117,-4385.0,0.00022,2]
[419219581,1775023849129,-1219.0,0.00022,2]
[419219582,1775023849140,-498.0,0.00022,2]
[419219583,1775023849151,-232.12,0.00022,30]
[419219584,1775023849163,-160.0,0.00022,7]
[419219585,1775023849175,-6277.8038845,0.00022,2]
[419219586,1775023849187,-1000.0,0.00022,7]
[419219587,1775023849198,-1000.0,0.00022,7]
[419219588,1775023849210,-1000.0,0.00022,7]
[419219589,1775023849222,-1000.0,0.00022,7]
[419219590,1775023849233,-1000.0,0.00022,7]
[419219591,1775023849246,-1000.0,0.00022,7]
[419219592,1775023849258,-1000.0,0.00022,7]
[419219593,1775023849270,-838.11,0.00022,7]
[419219594,1775023849282,-500.0,0.00022103,10]
[419219595,1775023849294,-500.0,0.00022103,10]
[419219596,1775023849306,-500.0,0.00022103,10]
[419219597,1775023849318,-500.0,0.00022103,10]
[419219598,1775023849330,-490.83014846,0.00022103,10]
[419219599,1775023849342,-330.83967565,0.00022103,10]
[419219600,1775023849354,-156.78867168,0.00022103,10]
[419219601,1775023849367,-699.0,0.00022103,10]
[419219602,1775023849378,-699.0,0.00022103,10]
[419219603,1775023849391,-699.0,0.00022103,10]
[419219604,1775023849404,-699.0,0.00022103,10]
[419219605,1775023849416,-699.0,0.00022103,10]
[419219606,1775023849429,-500.0,0.00022103,10]
[419219607,1775023849441,-699.0,0.00022103,10]
[419219608,1775023849454,-500.0,0.00022103,10]
[419219609,1775023849467,-699.0,0.00022103,10]
[419219610,1775023849479,-500.0,0.00022103,10]
[419219611,1775023849491,-699.0,0.00022103,10]
[419219612,1775023849503,-699.0,0.00022103,10]
[419219613,1775023849516,-500.0,0.00022103,10]
[419219614,1775023849527,-699.0,0.00022103,10]
[419219615,1775023849539,-500.0,0.00022103,10]
[419219616,1775023849551,-699.0,0.00022103,10]
[419219617,1775023849563,-500.0,0.00022103,10]
[419219618,1775023849574,-699.0,0.00022103,10]
[419219619,1775023849586,-500.0,0.00022103,10]
[419219620,1775023849598,-500.0,0.00022103,10]
[419219621,1775023849609,-500.0,0.00022103,10]
[419219622,1775023849633,-500.0,0.00022103,10]
[419219623,1775023849644,-500.0,0.00022103,10]
[419219624,1775023849656,-500.0,0.00022103,10]
[419219625,1775023849667,-500.0,0.00022103,10]
[419219626,1775023849678,-500.0,0.00022103,10]
[419219627,1775023849690,-500.0,0.00022103,10]
[419219628,1775023849702,-500.0,0.00022103,10]
[419219629,1775023849715,-500.0,0.00022103,10]
[419219630,1775023849726,-500.0,0.00022103,10]
[419219631,1775023849737,-500.0,0.00022103,10]
[419219632,1775023849748,-203.77883217,0.00022103,10]
[419219633,1775023849759,-500.0,0.00022103,10]
[419219634,1775023849770,-500.0,0.00022103,10]
[419219635,1775023849781,-500.0,0.00022103,10]
[419219636,1775023849792,-500.0,0.00022103,10]
[419219637,1775023849803,-156.13980161,0.00022103,10]
[419219638,1775023849814,-150.0,0.00022103,10]
[419219639,1775023849825,-150.0,0.00022103,10]
[419219640,1775023849837,-150.0,0.00022103,10]
[419219641,1775023849848,-150.0,0.00022103,10]
[419219642,1775023849860,-150.0,0.00022103,10]
[419219643,1775023849872,-150.0,0.00022103,10]
[419219644,1775023849883,-150.0,0.00022103,10]
[419219645,1775023849895,-150.0,0.00022103,10]
[419219646,1775023849906,-166.03773935,0.00022103,10]
[419219647,1775023849916,-150.0,0.00022103,10]
[419219648,1775023849927,-225.55855757,0.00022103,10]
[419219649,1775023849938,-500.0,0.00022103,10]
[419219650,1775023849949,-500.0,0.00022103,10]
[419219651,1775023849960,-500.0,0.00022103,10]
[419219652,1775023849971,-500.0,0.00022103,10]
[419219653,1775023849982,-500.0,0.00022103,10]
[419219654,1775023849993,-500.0,0.00022103,10]
[419219655,1775023850005,-192.86328768,0.00022103,10]
[419219656,1775023850016,-699.0,0.00022103,10]
[419219657,1775023850027,-699.0,0.00022103,10]
[419219658,1775023850039,-699.0,0.00022103,10]
[419219659,1775023850050,-500.0,0.00022103,10]
[419219660,1775023850062,-699.0,0.00022103,10]
[419219661,1775023850074,-528.88868282,0.00022103,10]
[419219662,1775023850086,-699.0,0.00022103,10]
[419219663,1775023850097,-699.0,0.00022103,10]
[419219664,1775023850109,-699.0,0.00022103,10]
[419219665,1775023850120,-699.0,0.00022103,10]
[419219666,1775023850134,-699.0,0.00022103,10]
[419219667,1775023850145,-699.0,0.00022103,10]
[419219668,1775023850155,-699.0,0.00022103,10]
[419219669,1775023850166,-713.91512659,0.00022103,10]
[419219670,1775023850177,-177.300024,0.00022103,2]
[419219671,1775023850189,-177.300024,0.00022103,2]
[419219672,1775023850201,-177.300024,0.00022103,2]
[419219673,1775023850213,-177.300024,0.00022103,2]
[419219674,1775023850226,-861.0,0.00022191,10]
[419219675,1775023850237,-1141.0,0.00022191,10]
[419219676,1775023850247,-209.40437684,0.0002239,2]
[419219677,1775023850258,-200.0,0.0002239,2]
[419219678,1775023850269,-1428.38747117,0.0002239,2]
[419219679,1775023850279,-209.40437684,0.0002239,2]
[419219680,1775023850290,-200.0,0.0002239,2]
[419219681,1775023850301,-187.78006525,0.0002239,2]
[419219682,1775023850312,-294.6626223,0.0002239,2]
[419219683,1775023850323,-301.00069851,0.0002239,2]
[419219684,1775023850334,-799.54513345,0.0002239,2]
[419219685,1775023850345,-150.0,0.00022439,2]
[419219686,1775023850356,-150.0,0.00022439,2]
[419219687,1775023850366,-150.0,0.00022439,2]
[419219688,1775023850377,-150.0,0.00022439,2]
[419219689,1775023851403,-167.0,0.00022439,2]
[419219690,1775023851435,-423.91679296,0.00022529,2]
[419219691,1775023851479,-231.43,0.00022562,2]
[419219692,1775023851497,-1988.12723973,0.00022589,2]
[419219693,1775023851507,-738.34266846,0.0002264,2]
[419219694,1775023851517,-1000.0,0.00022675,2]
[419219695,1775023851527,-53900.15742667,0.00022681,2]
[419219696,1775023852528,-24842.0394172,0.00022681,2]
[419219697,1775023852540,-258.87161287,0.00022681,2]
[419219698,1775023852552,-14823.84632351,0.00022681,2]
[419219699,1775023852591,-2081153.69079005,0.00022681,2]
[419219700,1775023852600,-151.0,0.00022681,2]
[419219701,1775023852609,-151.0,0.00022681,2]
[419219702,1775023852618,-151.0,0.00022681,2]
[419219703,1775023852627,-151.0,0.00022681,2]
[419219704,1775023852637,-342.803973,0.00022681,2]
[419219705,1775023852646,-151.0,0.00022681,2]
[419219706,1775023852655,-342.803973,0.00022681,2]
[419219707,1775023852665,-151.0,0.00022681,2]
[419219708,1775023852674,-342.803973,0.00022681,2]
[419219709,1775023852683,-151.0,0.00022681,2]
[419219710,1775023852693,-342.803973,0.00022681,2]
[419219711,1775023852705,-1650.81744721,0.00022726,2]
[419219712,1775023852714,-3571.85,0.0002274,2]
[419219713,1775023852726,-1000.0,0.00022755,2]
[419219714,1775023852735,-1000.0,0.0002279,2]
[419219715,1775023852744,-1000.0,0.00022811,2]
[419219716,1775023852754,-1000.0,0.00022816,2]
[419219717,1775023852764,-231.43,0.00022856,2]
[419219718,1775023852774,-300.0,0.00022928,2]
[419219719,1775023852785,-300.0,0.00022928,2]
[419219720,1775023852795,-300.0,0.00022928,2]
[419219721,1775023852804,-300.0,0.00022928,2]
[419219722,1775023852816,-300.0,0.00022928,2]
[419219723,1775023852826,-300.0,0.00022928,2]
[419219724,1775023852837,-300.0,0.00022928,2]
[419219725,1775023852846,-300.0,0.00022928,2]
[419219726,1775023852856,-300.0,0.00022928,2]
[419219727,1775023852865,-160.0,0.00022928,2]
[419219728,1775023852875,-1000.0,0.00022929,2]
[419219729,1775023852886,-200.0,0.00022938,2]
[419219730,1775023852990,-1481.23780761,0.00022938,2]
[419219731,1775023853000,-217.15233878,0.00022938,2]
[419219732,1775023853010,-217.15233878,0.00022938,2]
[419219733,1775023853019,-200.0,0.00022938,2]
[419219734,1775023853028,-194.72792766,0.00022938,2]
[419219735,1775023853038,-312.13772435,0.00022938,2]
[419219736,1775023853047,-829.12830338,0.00022938,2]
[419219737,1775023853057,-150.68680903,0.00023,30]
[419219738,1775023853067,-426.0,0.00023,2]
[419219739,1775023853077,-153.0,0.00023,2]
[419219740,1775023853087,-879.0,0.00023,2]
[419219741,1775023853096,-1338.0,0.00023,2]
[419219742,1775023853106,-4385.0,0.00023,2]
[419219743,1775023853116,-1219.0,0.00023,2]
[419219744,1775023853125,-498.0,0.00023,2]
[419219745,1775023853136,-1000.0,0.00023031,2]
[419219746,1775023853147,-1808.0263,0.000231,52]
[419219747,1775023853156,-1000.0,0.00023103,2]
[419219748,1775023853167,-1000.0,0.00023116,2]
[419219749,1775023853177,-231.42,0.00023149,2]
[419219750,1775023853187,-1000.0,0.00023221,2]
[419219751,1775023853197,-1000.0,0.00023225,2]
[419219752,1775023853207,-1000.0,0.00023423,2]
[419219753,1775023853216,-1000.0,0.00023443,2]
[419219754,1775023853228,-200.0,0.00023486,2]
[419219755,1775023853238,-1536.04360649,0.00023486,2]
[419219756,1775023853248,-225.18697532,0.00023486,2]
[419219757,1775023853258,-155.50836306,0.00023486,2]
[419219758,1775023853268,-200.0,0.00023486,2]
[419219759,1775023853278,-201.93286099,0.00023486,2]
[419219760,1775023853287,-253.60324636,0.00023486,2]
[419219761,1775023853297,-859.80605061,0.00023486,2]
[419219762,1775023853307,-151.0,0.00023486,2]
[419219763,1775023853316,-151.0,0.00023486,2]
[419219764,1775023853327,-151.0,0.00023486,2]
[419219765,1775023853337,-1000.0,0.00023505,2]
[419219766,1775023853348,-1000.0,0.00023609,2]
[419219767,1775023853358,-1000.0,0.00023611,2]
[419219768,1775023853368,-178.24115018,0.00023649,2]
[419219769,1775023853378,-1000.0,0.00023713,2]
[419219770,1775023853388,-2000.0,0.000238,2]
[419219771,1775023853397,-1000.0,0.0002381,2]
[419219772,1775023853407,-500.0,0.00023811,2]
[419219773,1775023853416,-505.0,0.00023813,11]
[419219774,1775023853424,-657.0,0.00023816,2]
[419219775,1775023853434,-150.0,0.00023874,2]
[419219776,1775023853444,-1000.0,0.00023876,2]
[419219777,1775023853455,-1000.0,0.00023908,2]
[419219778,1775023853466,-426.0,0.00024,2]
[419219779,1775023853477,-153.0,0.00024,2]
[419219780,1775023853486,-879.0,0.00024,2]
[419219781,1775023853496,-1338.0,0.00024,2]
[419219782,1775023853506,-4385.0,0.00024,2]
[419219783,1775023853515,-1219.0,0.00024,2]
[419219784,1775023853525,-498.0,0.00024,2]
[419219785,1775023853534,-485303.3245803,0.00024013,2]
[419219786,1775023853543,-1000.0,0.00024022,2]
[419219787,1775023853552,-599.60298507,0.00024033,2]
[419219788,1775023853560,-200.0,0.00024034,2]
[419219789,1775023853570,-1592.87721993,0.00024034,2]
[419219790,1775023853582,-233.51889341,0.00024034,2]
[419219791,1775023853592,-200.0,0.00024034,2]
[419219792,1775023853601,-209.40437684,0.00024034,2]
[419219793,1775023853610,-891.61887448,0.00024034,2]
[419219794,1775023853619,-199.62462886,0.00024054,120]
[419219795,1775023853629,-151.0,0.00024073,2]
[419219796,1775023853639,-151.0,0.00024073,2]
[419219797,1775023853648,-151.0,0.00024073,2]
[419219798,1775023853659,-1000.0,0.00024103,2]
[419219799,1775023853668,-1000.0,0.00024141,2]
[419219800,1775023853678,-283.34653029,0.00024177,2]
[419219801,1775023853687,-350.0,0.00024247,2]
[419219802,1775023853696,-150.0,0.00024288,2]
[419219803,1775023853705,-151.0,0.00024297,2]
[419219804,1775023853715,-151.0,0.00024297,2]
[419219805,1775023853725,-233.93350936,0.00024305,2]
[419219806,1775023853734,-108285.8085341,0.00024311,2]
[419219807,1775023853744,-150.0,0.00024331,2]
[419219808,1775023853753,-150.0,0.00024337,2]
[419219809,1775023853762,-150.0,0.0002439,2]
[419219810,1775023853771,-150.0,0.00024457,2]
[419219811,1775023853780,-150.0,0.00024493,2]
[419219812,1775023853790,-306.0,0.00024493,2]
[419219813,1775023853799,-1000.0,0.0002452,2]
[419219814,1775023853808,-150.0,0.00024538,2]
[419219815,1775023853818,-150.0,0.00024545,2]
[419219816,1775023853827,-350.0,0.00024572,3]
[419219817,1775023853836,-200.0,0.00024582,2]
[419219818,1775023853846,-1651.81367706,0.00024582,2]
[419219819,1775023853855,-242.15909246,0.00024582,2]
[419219820,1775023853864,-200.0,0.00024582,2]
[419219821,1775023853874,-217.15233878,0.00024582,2]
[419219822,1775023853883,-924.60877284,0.00024582,2]
[419219823,1775023853892,-157.270965,0.00024589,2]
[419219824,1775023853902,-157.270965,0.00024589,2]
[419219825,1775023853911,-157.270965,0.00024589,2]
[419219826,1775023853920,-157.270965,0.00024589,2]
[419219827,1775023853930,-2319.0819,0.000246,57]
[419219828,1775023853940,-150.0,0.0002461,2]
[419219829,1775023853949,-214.20886618,0.00024648,2]
[419219830,1775023853959,-1000.0,0.00024658,2]
[419219831,1775023853970,-150.0,0.00024658,2]
[419219832,1775023853980,-128106.53871111,0.0002466,2]
[419219833,1775023853989,-500.0,0.0002466,2]
[419219834,1775023853999,-500.0,0.0002466,2]
[419219835,1775023854009,-500.0,0.0002466,2]
[419219836,1775023854019,-500.0,0.0002466,2]
[419219837,1775023854029,-500.0,0.0002466,2]
[419219838,1775023854039,-500.0,0.0002466,2]
[419219839,1775023854048,-500.0,0.0002466,2]
[419219840,1775023854058,-500.0,0.0002466,2]
[419219841,1775023854067,-500.0,0.0002466,2]
[419219842,1775023854076,-500.0,0.0002466,2]
[419219843,1775023854086,-500.0,0.0002466,2]
[419219844,1775023854096,-500.0,0.0002466,2]
[419219845,1775023854105,-500.0,0.0002466,2]
[419219846,1775023854115,-500.0,0.0002466,2]
[419219847,1775023854124,-500.0,0.0002466,2]
[419219848,1775023854134,-500.0,0.0002466,2]
[419219849,1775023854144,-500.0,0.0002466,2]
[419219850,1775023854153,-500.0,0.0002466,2]
[419219851,1775023854163,-500.0,0.0002466,2]
[419219852,1775023854173,-500.0,0.0002466,2]
[419219853,1775023854183,-500.0,0.0002466,2]
[419219854,1775023854193,-500.0,0.0002466,2]
[419219855,1775023854202,-500.0,0.0002466,2]
[419219856,1775023854212,-500.0,0.0002466,2]
[419219857,1775023854221,-500.0,0.0002466,2]
[419219858,1775023854231,-500.0,0.0002466,2]
[419219859,1775023854240,-500.0,0.0002466,2]
[419219860,1775023854250,-500.0,0.0002466,2]
[419219861,1775023854259,-500.0,0.0002466,2]
[419219862,1775023854269,-500.0,0.0002466,2]
[419219863,1775023854278,-500.0,0.0002466,2]
[419219864,1775023854288,-500.0,0.0002466,2]
[419219865,1775023854297,-500.0,0.0002466,2]
[419219866,1775023854307,-500.0,0.0002466,2]
[419219867,1775023854316,-500.0,0.0002466,2]
[419219868,1775023854325,-500.0,0.0002466,2]
[419219869,1775023854334,-500.0,0.0002466,2]
[419219870,1775023854344,-500.0,0.0002466,2]
[419219871,1775023854354,-500.0,0.0002466,2]
[419219872,1775023854364,-500.0,0.0002466,2]
[419219873,1775023854375,-500.0,0.0002466,2]
[419219874,1775023854385,-363.417537,0.0002466,2]
[419219875,1775023854395,-1454.3040961,0.00024689,2]
[419219876,1775023854405,-150.0,0.00024706,2]
[419219877,1775023854414,-150.0,0.00024776,2]
[419219878,1775023854424,-500.0,0.000248,2]
[419219879,1775023854434,-33017.9749,0.000248,2]
[419219880,1775023854444,-1000.0,0.000248,2]
[419219881,1775023854454,-1000.0,0.00024846,2]
[419219882,1775023854463,-150.0,0.00024869,2]
[419219883,1775023854473,-150.0,0.00024883,2]
[419219884,1775023854482,-150.0,0.00024887,2]
[419219885,1775023854491,-200.0,0.00024899,2]
[419219886,1775023854501,-150.0,0.00024899,2]
[419219887,1775023854511,-150.0,0.000249,2]
[419219888,1775023854520,-233.18650358,0.000249,2]
[419219889,1775023854531,-256.0000009,0.000249,2]
[419219890,1775023854541,-200.0,0.000249,2]
[419219891,1775023854551,-200.0,0.000249,2]
[419219892,1775023854561,-153.0,0.000249,2]
[419219893,1775023854570,-200.0,0.000249,2]
[419219894,1775023854579,-160.64175446,0.000249,2]
[419219895,1775023854589,-212632.683312,0.000249,2]
[419219896,1775023854598,-161.0,0.000249,2]
[419219897,1775023854608,-1524.0,0.000249,2]
[419219898,1775023854617,-156.0,0.000249,2]
[419219899,1775023854626,-161.0,0.000249,2]
[419219900,1775023854635,-1524.0,0.000249,2]
[419219901,1775023854645,-152.0,0.000249,2]
[419219902,1775023854654,-156.0,0.000249,2]
[419219903,1775023854663,-205.95837428,0.000249,2]
[419219904,1775023854672,-1524.0,0.000249,2]
[419219905,1775023854682,-152.0,0.000249,2]
[419219906,1775023854691,-156.0,0.000249,2]
[419219907,1775023854701,-300.0,0.000249,2]
[419219908,1775023854711,-1524.0,0.000249,2]
[419219909,1775023854721,-169.03684,0.000249,2]
[419219910,1775023854730,-152.0,0.000249,2]
[419219911,1775023854740,-1524.0,0.000249,2]
[419219912,1775023854749,-152.0,0.000249,2]
[419219913,1775023854759,-1524.0,0.000249,2]
[419219914,1775023854768,-152.0,0.000249,2]
[419219915,1775023854779,-1524.0,0.000249,2]
[419219916,1775023854788,-152.0,0.000249,2]
[419219917,1775023854797,-1524.0,0.000249,2]
[419219918,1775023854806,-228.00689511,0.000249,2]
[419219919,1775023854815,-1524.0,0.000249,2]
[419219920,1775023854825,-1524.0,0.000249,2]
[419219921,1775023854835,-1524.0,0.000249,2]
[419219922,1775023854844,-153.0,0.000249,2]
[419219923,1775023854854,-1524.0,0.000249,2]
[419219924,1775023854865,-153.0,0.000249,2]
[419219925,1775023854875,-1524.0,0.000249,2]
[419219926,1775023854884,-153.0,0.000249,2]
[419219927,1775023854895,-153.0,0.000249,2]
[419219928,1775023854904,-1524.0,0.000249,2]
[419219929,1775023854914,-244.18218829,0.000249,2]
[419219930,1775023854923,-1524.0,0.000249,2]
[419219931,1775023854932,-1524.0,0.000249,2]
[419219932,1775023854942,-1524.0,0.000249,2]
[419219933,1775023854951,-1524.0,0.000249,2]
[419219934,1775023854961,-1524.0,0.000249,2]
[419219935,1775023854971,-1524.0,0.000249,2]
[419219936,1775023854981,-1524.0,0.000249,2]
[419219937,1775023854990,-1524.0,0.000249,2]
[419219938,1775023854999,-1524.0,0.000249,2]
[419219939,1775023855009,-250.0,0.00024904,6]
[419219940,1775023855018,-250.0,0.00024904,6]
[419219941,1775023855028,-358.45,0.00024904,6]
[419219942,1775023855037,-250.0,0.00024904,6]
[419219943,1775023855046,-2004.9555466,0.00025,2]
[419219944,1775023855056,-200.0,0.00025,3]
[419219945,1775023855066,-501.59,0.00025,2]
[419219946,1775023855076,-426.0,0.00025,2]
[419219947,1775023855085,-154.66442286,0.00025,2]
[419219948,1775023855095,-879.0,0.00025,2]
[419219949,1775023855105,-1338.0,0.00025,2]
[419219950,1775023855115,-4385.0,0.00025,2]
[419219951,1775023855124,-1219.0,0.00025,2]
[419219952,1775023855135,-498.0,0.00025,2]
[419219953,1775023855144,-1133.59,0.00025,2]
[419219954,1775023855153,-150.0,0.00025,2]
[419219955,1775023855162,-350.0,0.00025034,3]
[419219956,1775023855172,-200.0,0.0002513,2]
[419219957,1775023855181,-329.87748724,0.0002513,2]
[419219958,1775023855191,-200.0,0.0002513,2]
[419219959,1775023855200,-225.18697532,0.0002513,2]
[419219960,1775023855210,-958.81929743,0.0002513,2]
[419219961,1775023855220,-200.0,0.00025149,2]
[419219962,1775023855229,-200.0,0.00025149,2]
[419219963,1775023855239,-200.0,0.00025149,2]
[419219964,1775023855248,-1262.22,0.00025297,2]
[419219965,1775023855258,-200.0,0.000254,2]
[419219966,1775023855268,-200.0,0.000254,2]
[419219967,1775023855278,-200.0,0.000254,2]
[419219968,1775023855288,-2000.0,0.000254,2]
[419219969,1775023855296,-350.0,0.00025558,3]
[419219970,1775023855306,-666.66666,0.0002557,2]
[419219971,1775023855315,-666.66667,0.0002557,2]
[419219972,1775023855326,-666.66666,0.0002557,2]
[419219973,1775023855335,-666.66667,0.0002557,2]
[419219974,1775023855346,-666.66667,0.0002557,2]
[419219975,1775023855355,-2000.0,0.000256,2]
[419219976,1775023855364,-666.66667,0.000256,2]
[419219977,1775023855373,-200.0,0.00025654,2]
[419219978,1775023855382,-200.0,0.00025654,2]
[419219979,1775023855393,-200.0,0.00025654,2]
[419219980,1775023855403,-305.40636638,0.00025678,2]
[419219981,1775023855412,-200.0,0.00025678,2]
[419219982,1775023855422,-233.51889341,0.00025678,2]
[419219983,1775023855431,-994.29561144,0.00025678,2]
[419219984,1775023855441,-150.0,0.0002589,2]
[419219985,1775023855451,-200.0,0.00025911,2]
[419219986,1775023855460,-200.0,0.00025911,2]
[419219987,1775023855469,-200.0,0.00025911,2]
[419219988,1775023855479,-2974.5923,0.00026,62]
[419219989,1775023855488,-426.0,0.00026,2]
[419219990,1775023855497,-879.0,0.00026,2]
[419219991,1775023855506,-346.64806235,0.00026,2]
[419219992,1775023855515,-1338.0,0.00026,2]
[419219993,1775023855524,-4385.0,0.00026,2]
[419219994,1775023855533,-1219.0,0.00026,2]
[419219995,1775023855542,-498.0,0.00026,2]
[419219996,1775023855552,-1115.0,0.00026021,2]
[419219997,1775023855561,-350.0,0.00026073,2]
[419219998,1775023855570,-232.12,0.00026136,30]
[419219999,1775023855579,-200.0,0.00026226,2]
[419220000,1775023855588,-242.15909246,0.00026226,2]
[419220001,1775023855598,-1031.08454906,0.00026226,2]
[419220002,1775023855607,-657.0,0.00026275,2]
[419220003,1775023855615,-553.51227966,0.00026347,2]
[419220004,1775023855625,-505.0,0.00026489,13]